Workbook

Sheet Cost Worksheet
A6: ESTIMATED 2025-2026 COST WORKSHEET
A7: What We'll Bill You For | D7: Fall | E7: Spring | F7: Year | G7: This is an estimate of what you will be billed
A8: Click Here to Select Course Load | D8: =IF(A8="Click Here to Select Course Load",0,IF(A8="18 Hrs/Sem (In-State)",6722,IF(A8="17 Hrs/Sem (In-State)",6395,IF(A8="16 Hrs/Sem (In-State)",6068,IF(A8="15 Hrs/Sem (In-State)",5741,IF(A8="14 Hrs/Sem (In-State)",5414,IF(A8="13 Hrs/Sem (In-State)",5087,IF(A8="12 Hrs/Sem (In-State)",4760,IF(A8="11 Hrs/Sem (In-State)",4433,IF(A8="10 Hrs/Sem (In-State)",4106,IF(A8="9 Hrs/Sem (In-State)",3779,IF(A8="8 Hrs/Sem (In-State)",3452,IF(A8="7 Hrs/Sem (In-State)",3125,IF(A8="6 Hrs/Sem (In-State)",2694,IF(A8="18 Hrs/Sem (Out-of-State)",12914,IF(A8="17 Hrs/Sem (Out-of-State)",12243,IF(A8="16 Hrs/Sem (Out-of-State)",11572,IF(A8="15 Hrs/Sem (Out-of-State)",10901,IF(A8="14 Hrs/Sem (Out-of-State)",10230,IF(A8="13 Hrs/Sem (Out-of-State)",9559,IF(A8="12 Hrs/Sem (Out-of-State)",8888,IF(A8="11 Hrs/Sem (Out-of-State)",8217,IF(A8="10 Hrs/Sem (Out-of-State)",7546,IF(A8="9 Hrs/Sem (Out-of-State)",6875,IF(A8="8 Hrs/Sem (Out-of-State)",6204,IF(A8="7 Hrs/Sem (Out-of-State)",5533,IF(A8="6 Hrs/Sem (Out-of-State)",4758,IF(A8="",0)))))))))))))))))))))))))))) -> 0 | E8: =IF(A8="Click Here to Select Course Load",0,IF(A8="18 Hrs/Sem (In-State)",6722,IF(A8="17 Hrs/Sem (In-State)",6395,IF(A8="16 Hrs/Sem (In-State)",6068,IF(A8="15 Hrs/Sem (In-State)",5741,IF(A8="14 Hrs/Sem (In-State)",5414,IF(A8="13 Hrs/Sem (In-State)",5087,IF(A8="12 Hrs/Sem (In-State)",4760,IF(A8="11 Hrs/Sem (In-State)",4433,IF(A8="10 Hrs/Sem (In-State)",4106,IF(A8="9 Hrs/Sem (In-State)",3779,IF(A8="8 Hrs/Sem (In-State)",3452,IF(A8="7 Hrs/Sem (In-State)",3125,IF(A8="6 Hrs/Sem (In-State)",2694,IF(A8="18 Hrs/Sem (Out-of-State)",12914,IF(A8="17 Hrs/Sem (Out-of-State)",12243,IF(A8="16 Hrs/Sem (Out-of-State)",11572,IF(A8="15 Hrs/Sem (Out-of-State)",10901,IF(A8="14 Hrs/Sem (Out-of-State)",10230,IF(A8="13 Hrs/Sem (Out-of-State)",9559,IF(A8="12 Hrs/Sem (Out-of-State)",8888,IF(A8="11 Hrs/Sem (Out-of-State)",8217,IF(A8="10 Hrs/Sem (Out-of-State)",7546,IF(A8="9 Hrs/Sem (Out-of-State)",6875,IF(A8="8 Hrs/Sem (Out-of-State)",6204,IF(A8="7 Hrs/Sem (Out-of-State)",5533,IF(A8="6 Hrs/Sem (Out-of-State)",4758,IF(A8="",0)))))))))))))))))))))))))))) -> 0 | F8: =SUM(D8:E8) -> 0
A9: Click Here to Select Housing | D9: =IF(A9 = "Click Here to Select Housing", 0, IF(A9="Freudenberger 2 or 3-Person", 3383, IF(A9="Wells 2-Person", 3383, IF(A9="Wells 4-Person", 3640, IF(A9="Woods 1-Person", 4104, IF(A9="Woods 2-Person", 3481, IF(A9="Blair-Shannon 6-Person", 3835, IF(A9="Hammons or Hutchens 2-Person", 4847, IF(A9="Hammons or Hutchens 4-Person", 4229, IF(A9="Kentwood 1-Person", 4495, IF(A9="Kentwood 2 and 3-Person", 3857, IF(A9="Kentwood 2-Person Super Double", 4362, IF(A9="Scholars", 4229, IF(A9="Monroe 1-Person", 3759, IF(A9="Monroe 2-Person", 3648, IF(A9="Monroe 4-Person", 3419, IF(A9="Sunvilla 2-Person", 3214, IF(A9="Sunvilla 3-Person", 3075, IF(A9="Sunvilla 3-Person - Private", 3353, IF(A9="Sunvilla 4-Person", 2926, IF(A9="Heitz House", 3835, IF(A9="Off-Campus/With Parent", 0)))))))))))))))))))))) -> 0 | E9: =IF(A9 = "Click Here to Select Housing", 0, IF(A9="Freudenberger 2 or 3-Person", 3383, IF(A9="Wells 2-Person", 3383, IF(A9="Wells 4-Person", 3640, IF(A9="Woods 1-Person", 4104, IF(A9="Woods 2-Person", 3481, IF(A9="Blair-Shannon 6-Person", 3835, IF(A9="Hammons or Hutchens 2-Person", 4847, IF(A9="Hammons or Hutchens 4-Person", 4229, IF(A9="Kentwood 1-Person", 4495, IF(A9="Kentwood 2 and 3-Person", 3857, IF(A9="Kentwood 2-Person Super Double", 4362, IF(A9="Scholars", 4229, IF(A9="Monroe 1-Person", 3759, IF(A9="Monroe 2-Person", 3648, IF(A9="Monroe 4-Person", 3419, IF(A9="Sunvilla 2-Person", 3214, IF(A9="Sunvilla 3-Person", 3075, IF(A9="Sunvilla 3-Person - Private", 3353, IF(A9="Sunvilla 4-Person", 2926, IF(A9="Heitz House", 3835, IF(A9="Off-Campus/With Parent", 0)))))))))))))))))))))) -> 0 | F9: =SUM(D9:E9) -> 0
A10: Click Here to Select a Meal Plan | D10: =IF(A10 ="Click Here to Select a Meal Plan", 0, IF(A10 ="Unlimited meal/week", 1612, IF(A10 ="19-Meals/week", 1506, IF(A10 ="14-Meals/week", 1479, IF(A10 ="10-Meals/week", 1460, IF(A10 = "", 0)))))) -> 0 | E10: =IF(A10 ="Click Here to Select a Meal Plan", 0, IF(A10 ="Unlimited meal/week", 1612, IF(A10 ="19-Meals/week", 1506, IF(A10 ="14-Meals/week", 1479, IF(A10 ="10-Meals/week", 1460, IF(A10 = "", 0)))))) -> 0 | F10: 0
A11: Click Here to Select a Dining Dollars Plan | D11: =IF(A11="Click Here to Select a Dining Dollars Plan", 0, IF(A11="Option 1 - $310 (Worth $340)",310,IF(A11="Option 2 - $242 (Worth $265)",242,IF(A11="Option 3 - $192 (Worth $210)",192,IF(A11="",0))))) -> 0 | E11: =IF(A11="Click Here to Select a Dining Dollars Plan", 0, IF(A11="Option 1 - $310 (Worth $340)",310,IF(A11="Option 2 - $242 (Worth $265)",242,IF(A11="Option 3 - $192 (Worth $210)",192,IF(A11="",0))))) -> 0 | F11: 0
A12: Click Here to Select a Parking Permit | D12: =IF(A12="Click Here to Select a Parking Permit", 0, IF(A12="Commuter Parking",60.5,IF(A12="Residence Hall Parking",100.5,IF(A12="Heitz House Parking",252.5,IF(A12="Motorcycle Parking",14,IF(A12="Orange Lot Parking",33.5,IF(A12="No Car",0))))))) -> 0 | E12: =IF(A12="Click Here to Select a Parking Permit", 0, IF(A12="Commuter Parking",60.5,IF(A12="Residence Hall Parking",100.5,IF(A12="Heitz House Parking",252.5,IF(A12="Motorcycle Parking",14,IF(A12="Orange Lot Parking",33.5,IF(A12="No Car",0))))))) -> 0 | F12: 0
A13: =IF(A8= "Click Here to Select Course Load", "","Books & Supplies") ->  | D13: =IF(A8="18 Hrs/Sem (In-State)",600,IF(A8="17 Hrs/Sem (In-State)",600,IF(A8="16 Hrs/Sem (In-State)",600,IF(A8="15 Hrs/Sem (In-State)",600,IF(A8="14 Hrs/Sem (In-State)",600,IF(A8="13 Hrs/Sem (In-State)",600,IF(A8="12 Hrs/Sem (In-State)",600,IF(A8="11 Hrs/Sem (In-State)",450,IF(A8="10 Hrs/Sem (In-State)",450,IF(A8="9 Hrs/Sem (In-State)",450,IF(A8="8 Hrs/Sem (In-State)",300,IF(A8="7 Hrs/Sem (In-State)",300,IF(A8="6 Hrs/Sem (In-State)",300,IF(A8="18 Hrs/Sem (Out-of-State)",600,IF(A8="17 Hrs/Sem (Out-of-State)",600,IF(A8="16 Hrs/Sem (Out-of-State)",600,IF(A8="15 Hrs/Sem (Out-of-State)",600,IF(A8="14 Hrs/Sem (Out-of-State)",600,IF(A8="13 Hrs/Sem (Out-of-State)",600,IF(A8="12 Hrs/Sem (Out-of-State)",600,IF(A8="11 Hrs/Sem (Out-of-State)",450,IF(A8="10 Hrs/Sem (Out-of-State)",450,IF(A8="9 Hrs/Sem (Out-of-State)",450,IF(A8="8 Hrs/Sem (Out-of-State)",300,IF(A8="7 Hrs/Sem (Out-of-State)",300,IF(A8="6 Hrs/Sem (Out-of-State)",300,IF(A8="Click Here to Select Course Load",0))))))))))))))))))))))))))) -> 0 | E13: =IF(A8="18 Hrs/Sem (In-State)",600,IF(A8="17 Hrs/Sem (In-State)",600,IF(A8="16 Hrs/Sem (In-State)",600,IF(A8="15 Hrs/Sem (In-State)",600,IF(A8="14 Hrs/Sem (In-State)",600,IF(A8="13 Hrs/Sem (In-State)",600,IF(A8="12 Hrs/Sem (In-State)",600,IF(A8="11 Hrs/Sem (In-State)",450,IF(A8="10 Hrs/Sem (In-State)",450,IF(A8="9 Hrs/Sem (In-State)",450,IF(A8="8 Hrs/Sem (In-State)",300,IF(A8="7 Hrs/Sem (In-State)",300,IF(A8="6 Hrs/Sem (In-State)",300,IF(A8="18 Hrs/Sem (Out-of-State)",600,IF(A8="17 Hrs/Sem (Out-of-State)",600,IF(A8="16 Hrs/Sem (Out-of-State)",600,IF(A8="15 Hrs/Sem (Out-of-State)",600,IF(A8="14 Hrs/Sem (Out-of-State)",600,IF(A8="13 Hrs/Sem (Out-of-State)",600,IF(A8="12 Hrs/Sem (Out-of-State)",600,IF(A8="11 Hrs/Sem (Out-of-State)",450,IF(A8="10 Hrs/Sem (Out-of-State)",450,IF(A8="9 Hrs/Sem (Out-of-State)",450,IF(A8="8 Hrs/Sem (Out-of-State)",300,IF(A8="7 Hrs/Sem (Out-of-State)",300,IF(A8="6 Hrs/Sem (Out-of-State)",300,IF(A8="Click Here to Select Course Load",0))))))))))))))))))))))))))) -> 0 | F13: 0
A14: Your Total Estimated Bill | D14: =SUM(D8:D13) -> 0 | E14: =SUM(E8:E13) -> 0 | F14: 0
A16: Financial Aid Offer | D16: Fall | E16: Spring | F16: Total
A17: Click Here to Select an Aid Program | D17: =F17/2 -> 0 | E17: =F17/2 -> 0 | H17: Enter your scholarships,grants, and loans here
A18: Click Here to Select an Aid Program | D18: =F18/2 -> 0 | E18: =F18/2 -> 0
A19: Click Here to Select an Aid Program | D19: 0 | E19: 0
A20: Click Here to Select an Aid Program | D20: 0 | E20: 0
A21: Click Here to Select an Aid Program | D21: 0 | E21: 0
A22: Click Here to Select an Aid Program | D22: 0 | E22: 0
A23: Click Here to Select an Aid Program | D23: 0 | E23: 0
A24: Click Here to Select an Aid Program | D24: 0 | E24: 0
A25: Click Here to Select an Aid Program | D25: 0 | E25: 0
A26: Your Total Estimated Aid | D26: =SUM(D17:D25) -> 0 | E26: =SUM(E17:E25) -> 0 | F26: 0
A28: Estimated Out-of-Pocket Expenses | D28: Fall | E28: Spring | F28: Total
D29: =SUM(D14-D26) -> 0 | E29: =SUM(E14-E26) -> 0 | F29: 0

Sheet Non-Res Tuition Waiver Calc
A1: Enrollment | B1: Term Hours | C1: Term OOS Tuition | D1: AYR OOS Tuition | E1: AYR OOS WAIVER VALUE
A2: 14 Hrs/Sem (Out-of-State) | B2: =IF(A2="18 Hrs/Sem (Out-of-State)",18,IF(A2="17 Hrs/Sem (Out-of-State)",17,IF(A2="16 Hrs/Sem (Out-of-State)",16,IF(A2="15 Hrs/Sem (Out-of-State)",15,IF(A2="14 Hrs/Sem (Out-of-State)",14,IF(A2="13 Hrs/Sem (Out-of-State)",13,IF(A2="12 Hrs/Sem (Out-of-State)",12,IF(A2="Click Here to Select Course Load",0)))))))) -> 14 | C2: =SUM(B2*646) -> 9044 | D2: =SUM(C2*2) -> 18088 | E2: =SUM(D2-(302*(B2*2))) -> 9632

Sheet Data Table (hidden)
A1: WORKSHEET PASSWORD: Boomer
B2: Click Here to Select Housing | E2: Click Here to Select an Aid Program | G2: Click Here to Select Course Load | H2: Hrs | I2: Tuition | J2: Term Tuition | K2: Addl Fee | L2: SSF | M2: Term T&F | N2: AYR T&F | P2: Click Here to Select Course Load
B3: Freudenberger 2 or 3-Person | C3: 3383 | E3: Federal Pell Grant | G3: 18 Hrs/Sem (In-State) | H3: 18 | I3: 302 | J3: =SUM(I3*H3) -> 5436 | K3: =SUM(H3*25) -> 450 | L3: 836 | M3: =SUM(J3:L3) -> 6722 | N3: =SUM(M3*2) -> 13444 | P3: 18 Hrs/Sem (Out-of-State)
B4: Wells 2-Person | C4: 3383 | E4: FSEOG | G4: 17 Hrs/Sem (In-State) | H4: 17 | I4: 302 | J4: =SUM(I4*H4) -> 5134 | K4: =SUM(H4*25) -> 425 | L4: 836 | M4: =SUM(J4:L4) -> 6395 | N4: =SUM(M4*2) -> 12790 | P4: 17 Hrs/Sem (Out-of-State)
B5: Wells 4-Person | C5: 3640 | E5: Access Missouri Grant | G5: 16 Hrs/Sem (In-State) | H5: 16 | I5: 302 | J5: 4832 | K5: 400 | L5: 836 | M5: 6068 | N5: 12136 | P5: 16 Hrs/Sem (Out-of-State)
B6: Woods 1-Person | C6: 4104 | E6: Bright Flight Scholarship | G6: 15 Hrs/Sem (In-State) | H6: 15 | I6: 302 | J6: 4530 | K6: 375 | L6: 836 | M6: 5741 | N6: 11482 | P6: 15 Hrs/Sem (Out-of-State)
B7: Woods 2-Person | C7: 3481 | E7: Presidential Scholarship | G7: 14 Hrs/Sem (In-State) | H7: 14 | I7: 302 | J7: 4228 | K7: 350 | L7: 836 | M7: 5414 | N7: 10828 | P7: 14 Hrs/Sem (Out-of-State)
B8: Blair-Shannon 6-Person | C8: 3835 | E8: Board of Governors Scholarship | G8: 13 Hrs/Sem (In-State) | H8: 13 | I8: 302 | J8: 3926 | K8: 325 | L8: 836 | M8: 5087 | N8: 10174 | P8: 13 Hrs/Sem (Out-of-State)
B9: Hammons or Hutchens 2-Person | C9: 4847 | E9: Provost Scholarship | G9: 12 Hrs/Sem (In-State) | H9: 12 | I9: 302 | J9: 3624 | K9: 300 | L9: 836 | M9: 4760 | N9: 9520 | P9: 12 Hrs/Sem (Out-of-State)
B10: Hammons or Hutchens 4-Person | C10: 4229 | E10: Deans Scholarship | G10: 11 Hrs/Sem (In-State) | H10: 11 | I10: 302 | J10: 3322 | K10: 275 | L10: 836 | M10: 4433 | N10: 8866 | P10: 11 Hrs/Sem (Out-of-State)
B11: Kentwood 1-Person | C11: 4495 | E11: Academic Excellence Scholarship | G11: 10 Hrs/Sem (In-State) | H11: 10 | I11: 302 | J11: 3020 | K11: 250 | L11: 836 | M11: 4106 | N11: 8212 | P11: 10 Hrs/Sem (Out-of-State)
B12: Kentwood 2 and 3-Person | C12: 3857 | E12: Academic Distinction Scholarship | G12: 9 Hrs/Sem (In-State) | H12: 9 | I12: 302 | J12: 2718 | K12: 225 | L12: 836 | M12: 3779 | N12: 7558 | P12: 9 Hrs/Sem (Out-of-State)
B13: Kentwood 2-Person Super Double | C13: 4362 | E13: Academic Achievement Scholarship | G13: 8 Hrs/Sem (In-State) | H13: 8 | I13: 302 | J13: 2416 | K13: 200 | L13: 836 | M13: 3452 | N13: 6904 | P13: 8 Hrs/Sem (Out-of-State)
B14: Scholars | C14: 4229 | E14: Engaged Citizen Award | G14: 7 Hrs/Sem (In-State) | H14: 7 | I14: 302 | J14: 2114 | K14: 175 | L14: 836 | M14: 3125 | N14: 6250 | P14: 7 Hrs/Sem (Out-of-State)
B15: Monroe 1-Person | C15: 3759 | E15: Hutchens/SGA Centennial Leaders | G15: 6 Hrs/Sem (In-State) | H15: 6 | I15: 302 | J15: 1812 | K15: 150 | L15: 732 | M15: 2694 | N15: 5388 | P15: 6 Hrs/Sem (Out-of-State)
B16: Monroe 2-Person | C16: 3648 | E16: A+ Recognition Scholarship | G16: 18 Hrs/Sem (Out-of-State) | H16: 18 | I16: 646 | J16: 11628 | K16: 450 | L16: 836 | M16: =SUM(J16:L16) -> 12914 | N16: 25828
B17: Monroe 4-Person | C17: 3419 | E17: Other Institutional Scholarship | G17: 17 Hrs/Sem (Out-of-State) | H17: 17 | I17: 646 | J17: 10982 | K17: 425 | L17: 836 | M17: =SUM(J17:L17) -> 12243 | N17: 24486
B18: Sunvilla 2-Person | C18: 3214 | E18: Non-Resident Tuition Waiver | G18: 16 Hrs/Sem (Out-of-State) | H18: 16 | I18: 646 | J18: 10336 | K18: 400 | L18: 836 | M18: 11572 | N18: 23144
B19: Sunvilla 3-Person | C19: 3075 | E19: Foundation Scholarship | G19: 15 Hrs/Sem (Out-of-State) | H19: 15 | I19: 646 | J19: 9690 | K19: 375 | L19: 836 | M19: 10901 | N19: 21802
B20: Sunvilla 3-Person - Private | C20: 3353 | E20: Outside Scholarship | G20: 14 Hrs/Sem (Out-of-State) | H20: 14 | I20: 646 | J20: 9044 | K20: 350 | L20: 836 | M20: 10230 | N20: 20460
B21: Sunvilla 4-Person | C21: 2926 | E21: Federal Work-Study | G21: 13 Hrs/Sem (Out-of-State) | H21: 13 | I21: 646 | J21: 8398 | K21: 325 | L21: 836 | M21: 9559 | N21: 19118
B22: Heitz House | C22: 3835 | E22: Direct Subsidized Loan | G22: 12 Hrs/Sem (Out-of-State) | H22: 12 | I22: 646 | J22: 7752 | K22: 300 | L22: 836 | M22: 8888 | N22: 17776
B23: Off-Campus/With Parent | C23: 0 | E23: Direct Unsubsidized Loan | G23: 11 Hrs/Sem (Out-of-State) | H23: 11 | I23: 646 | J23: 7106 | K23: 275 | L23: 836 | M23: 8217 | N23: 16434
E24: Other | G24: 10 Hrs/Sem (Out-of-State) | H24: 10 | I24: 646 | J24: 6460 | K24: 250 | L24: 836 | M24: 7546 | N24: 15092
B25: Click Here to Select a Meal Plan | G25: 9 Hrs/Sem (Out-of-State) | H25: 9 | I25: 646 | J25: 5814 | K25: 225 | L25: 836 | M25: 6875 | N25: 13750
B26: Unlimited meal/week | C26: 1612 | G26: 8 Hrs/Sem (Out-of-State) | H26: 8 | I26: 646 | J26: 5168 | K26: 200 | L26: 836 | M26: 6204 | N26: 12408
B27: 19-Meals/week | C27: 1506 | G27: 7 Hrs/Sem (Out-of-State) | H27: 7 | I27: 646 | J27: 4522 | K27: 175 | L27: 836 | M27: 5533 | N27: 11066
B28: 14-Meals/week | C28: 1479 | G28: 6 Hrs/Sem (Out-of-State) | H28: 6 | I28: 646 | J28: 3876 | K28: 150 | L28: 732 | M28: 4758 | N28: 9516
B29: 10-Meals/week | C29: 1460
B31: Click Here to Select a Dining Dollars Plan
B32: Option 1 - $310 (Worth $340) | C32: 310
B33: Option 2 - $242 (Worth $265) | C33: 242
B34: Option 3 - $192 (Worth $210) | C34: 192
B36: Click Here to Select a Parking Permit
B37: Commuter Parking | C37: 60.5
B38: Residence Hall Parking | C38: 100.5
B39: Heitz House Parking | C39: 252.5
B40: Motorcycle Parking | C40: 14
B41: Orange Lot Parking | C41: 33.5
B42: No Car | C42: 0
